bitfinex-derivatives/quotes_SOLF0:USTF0_20241218
["timestamp","ask_amount","ask_price","bid_price","bid_amount"]
[1734485914190,2.2472,222.47,222.4,2.26]
[1734485914397,15.83086461,222.51,222.41,2.26]
[1734485914596,15.83086461,222.51,222.4,2.26]
[1734485914796,15.83086461,222.51,222.41,2.26]
[1734485915193,2.2474,222.44,222.41,2.26]
[1734485915397,15.83086461,222.51,222.41,2.26]
[1734485915602,15.83086461,222.51,222.37,2.26]
[1734485916695,2.2473,222.46,222.37,2.26]
[1734485917395,2.2473,222.46,222.39,2.2479]
[1734485917601,3.0416,222.54,222.37,2.26]
[1734485917797,3.0416,222.54,222.38,2.9532]
[1734485917798,1.5753,222.54,222.38,2.9532]
[1734485918399,2.2466,222.52,222.42,2.2475]
[1734485918599,2.2466,222.52,222.43,2.26]
[1734485918795,13.57086461,222.55,222.43,2.26]
[1734485918995,2.2465,222.53,222.47,2.2471]
[1734485920703,2.2468,222.5,222.43,2.26]
[1734485921502,21.30600851,222.59,222.44,2.2474]
[1734485921503,2.2469,222.49,222.44,2.2474]
[1734485922403,8.46848288,222.51,222.42,2.26]
[1734485923099,2.247,222.48,222.43,2.2475]
[1734485923404,8.46848288,222.51,222.42,2.26]
[1734485923906,2.2471,222.48,222.42,2.26]
[1734485924105,8.46848288,222.51,222.38,2.9532]
[1734485924299,8.46848288,222.51,222.4,2.26]
[1734485924712,10.72848288,222.51,222.4,2.26]
[1734485925105,2.2472,222.46,222.41,2.2477]
[1734485925309,10.72848288,222.51,222.4,2.26]
[1734485925810,2.2471,222.47,222.42,2.2476]
[1734485927210,2.2472,222.46,222.4,4.5077]
[1734485927803,8.46848288,222.51,222.4,2.26]
[1734485927804,2.2473,222.45,222.4,2.26]
[1734485928008,8.46848288,222.51,222.4,2.26]
[1734485928811,2.2474,222.45,222.4,2.26]
[1734485929013,8.46848288,222.51,222.4,2.32]
[1734485929212,8.46848288,222.51,222.39,2.32]
[1734485929409,2.2471,222.48,222.38,1.4577]
[1734485929615,8.46848288,222.48,222.38,1.4577]
[1734485930111,2.2476,222.43,222.38,1.4577]
[1734485930416,2.32,222.47,222.37,2.2481]
[1734485930811,2.2476,222.43,222.37,2.2481]
[1734485931211,2.32,222.47,222.37,2.2481]
[1734485932512,2.2476,222.42,222.33,1.5346]
[1734485932815,2.32,222.47,222.36,2.2482]
[1734485933316,2.32,222.47,222.38,2.248]
[1734485933718,2.2475,222.43,222.38,2.248]
[1734485934718,13.45,222.38,222.08,13.74218121]
[1734485934914,16.93696576,222.39,222.1,8.46848288]
[1734485934915,8.46848288,222.24,222.1,8.46848288]
[1734485935117,8.46848288,222.24,222.1,5.51946958]
[1734485935314,8.46848288,222.2,222.1,5.51946958]
[1734485935520,8.46848288,222.2,221.88,8.46848288]
[1734485935521,8.46848288,222.14,221.96,1.4644]
[1734485935715,8.46848288,222.11,221.96,1.4644]
[1734485935915,8.46848288,222.08,221.96,6.78704582]
[1734485936120,8.46848288,222.08,221.96,3.7844]
[1734485936310,8.46848288,222.08,221.96,2.32]
[1734485936511,8.46848288,222.08,221.92,8.46848288]
[1734485936718,8.46848288,222.08,221.94,5.35995788]
[1734485937019,2.2514,222.05,221.94,5.35995788]
[1734485937221,8.46848288,222.08,221.94,5.35995788]
[1734485937620,2.2513,222.06,221.94,5.35995788]
[1734485938014,13.60710273,222.09,221.94,5.35995788]
[1734485938920,5.44918236,222.08,221.95,2.32]
[1734485939917,13.45,222.23,221.95,2.32]
[1734485939918,13.60710273,222.13,221.95,2.32]
[1734485940120,2.32,222.12,221.95,2.32]
[1734485940420,13.60710273,222.13,221.95,2.32]
[1734485940614,2.32,222.12,221.95,2.32]
[1734485941325,2.2512,222.07,221.98,2.252]
[1734485941616,13.60710273,222.13,221.95,2.32]
[1734485941816,15.92710273,222.17,222.04,2.2514]
[1734485942014,5.32818045,222.16,222.05,2.32]
[1734485942217,5.32818045,222.16,222.06,2.32]
[1734485942412,2.2512,222.08,222.06,2.32]
[1734485942612,13.60710273,222.13,222.02,2.32]
[1734485942816,2.2515,222.04,222.02,2.32]
[1734485943018,2.32,222.12,221.99,2.32]
[1734485943019,13.60710273,222.09,221.99,2.32]
[1734485943213,13.60710273,222.09,221.93,13.60710273]
[1734485943214,13.60710273,222.09,221.98,2.32]
[1734485944326,13.60710273,222.09,221.92,5.45040627]
[1734485944522,13.60710273,222.09,221.93,2.32]
[1734485945122,13.60710273,222.05,221.91,1.4644]
[1734485945318,2.32,222.04,221.92,2.32]
[1734485946127,2.2522,221.97,221.92,2.32]
[1734485947120,2.2516,222.03,221.92,2.32]
[1734485947430,2.32,222.08,221.92,2.32]
[1734485947622,2.2515,222.04,221.95,2.2523]
[1734485948125,2.2518,222.01,221.93,2.2525]
[1734485948323,13.60710273,222.05,221.91,1.4644]
[1734485948524,13.60710273,222.01,221.92,2.32]
[1734485948725,13.60710273,222.01,221.91,2.32]
[1734485949126,13.60710273,222.01,221.9,6.7626565]
[1734485949127,13.60710273,222.01,221.9,3.7567]
[1734485949327,13.60710273,222.01,221.87,2.32]
[1734485949729,13.60710273,221.97,221.77,1.5507]
[1734485949924,13.60710273,221.93,221.78,2.32]
[1734485950123,13.60710273,221.93,221.78,3.7806]
[1734485950324,13.60710273,221.93,221.82,5.32613596]
[1734485950631,13.60710273,221.93,221.83,2.32]
[1734485952426,2.2529,221.9,221.83,2.32]
[1734485953426,13.60710273,221.93,221.83,2.32]
[1734485954532,2.253,221.89,221.82,2.2537]
[1734485954733,13.60710273,221.93,221.82,2.32]
[1734485955032,13.60710273,221.93,221.78,3.7806]
[1734485955331,13.60710273,221.93,221.79,2.32]
[1734485955634,2.2535,221.84,221.79,2.32]
[1734485955821,13.60710273,221.89,221.79,2.32]
[1734485956024,2.7836,221.94,221.79,2.32]
[1734485956025,13.60710273,221.93,221.79,2.32]
[1734485956927,2.2529,221.9,221.83,2.2536]
[1734485957122,13.60710273,221.93,221.8,2.46]
[1734485957528,13.60710273,221.93,221.81,2.2537]
[1734485958029,2.2531,221.89,221.82,2.2537]
[1734485958933,16.06710273,221.93,221.8,2.46]
[1734485959636,13.60710273,221.93,221.8,2.46]
[1734485960333,13.60710273,221.93,221.82,2.2536]
[1734485960727,2.2537,221.82,221.75,2.2543]
[1734485960932,13.60710273,221.85,221.7,2.46]
[1734485961128,13.60710273,221.85,221.71,0.82867769]
[1734485961331,2.2538,221.81,221.75,2.2543]
[1734485961730,2.2536,221.83,221.78,2.2541]
[1734485961935,13.60710273,221.85,221.65,2.9451]
[1734485962130,13.60710273,221.77,221.73,5.92892986]
[1734485962337,2.2551,221.69,221.56,5.5597]
[1734485962542,2.46,221.73,221.62,5.35662232]
[1734485962832,16.06710273,221.77,221.63,2.46]
[1734485963632,16.06710273,221.77,221.65,2.2554]
[1734485963633,2.2548,221.72,221.65,2.2554]
[1734485963832,16.06710273,221.77,221.65,2.2554]
[1734485964235,13.60710273,221.77,221.63,2.46]
[1734485964436,13.60710273,221.81,221.64,1.4418]
[1734485964636,2.46,221.8,221.64,1.4418]
[1734485964832,2.46,221.8,221.7,2.2549]
[1734485965736,2.2542,221.78,221.71,2.2548]
[1734485965932,2.2542,221.78,221.68,2.46]
[1734485965933,2.46,221.8,221.68,2.46]
[1734485966242,2.46,221.8,221.69,1.5818]
[1734485966638,2.46,221.8,221.69,3.1488]
[1734485966832,13.60710273,221.81,221.69,3.1488]
[1734485967238,2.46,221.84,221.69,3.1488]
[1734485967436,16.06710273,221.85,221.69,3.1488]
[1734485968034,2.2538,221.81,221.75,2.2544]
[1734485968335,18.97094094,221.85,221.73,2.46]
[1734485968539,2.254,221.8,221.74,2.2545]
[1734485969445,2.254,221.79,221.74,2.2545]
[1734485969745,16.06710273,221.89,221.77,2.2541]
[1734485969952,2.46,221.88,221.77,2.2541]
[1734485970349,2.2537,221.82,221.77,2.2541]
[1734485971654,13.60710273,221.85,221.73,2.2546]
[1734485971851,13.60710273,221.85,221.72,2.46]
[1734485972349,2.2542,221.77,221.72,4.7147]
[1734485972548,2.46,221.83,221.72,2.46]
[1734485972849,13.60710273,221.81,221.68,2.46]
[1734485973554,13.60710273,221.73,221.45,1.97465453]
[1734485973752,13.60710273,221.73,221.58,2.46]
[1734485974255,2.2552,221.67,221.61,2.2558]
[1734485975147,13.60710273,221.73,221.35,18.67383997]
[1734485975348,27.05710273,221.85,221.35,18.67383997]
[1734485975349,16.06710273,221.69,221.46,13.60710273]
[1734485975548,13.60710273,221.76,221.47,4.77300451]
[1734485975742,13.60710273,221.76,221.56,5.3452669]
[1734485975944,13.60710273,221.76,221.64,2.2554]
[1734485976555,13.60710273,221.8,221.62,2.46]
[1734485976753,2.46,221.79,221.63,2.46]
[1734485976955,13.60710273,221.8,221.63,2.46]
[1734485977249,2.46,221.79,221.63,2.46]
[1734485977656,2.46,221.79,221.64,2.46]
[1734485977657,2.2544,221.76,221.64,2.46]
[1734485977950,13.60710273,221.8,221.65,2.46]
[1734485978151,13.60710273,221.8,221.66,2.46]
[1734485978457,13.60710273,221.8,221.67,3.9395]
[1734485978655,13.60710273,221.8,221.68,3.9758]
[1734485979055,2.2541,221.78,221.71,2.2548]
[1734485979457,13.60710273,221.8,221.69,1.5001]
[1734485979756,2.46,221.82,221.74,2.2545]
[1734485979952,13.60710273,221.84,221.74,4.7145]
[1734485980251,15.86070273,221.84,221.76,2.2543]
[1734485980455,13.60710273,221.84,221.74,2.46]
[1734485980647,13.60710273,221.84,221.7,2.46]
[1734485980648,16.06710273,221.84,221.7,2.46]
[1734485980848,2.46,221.83,221.7,2.46]
[1734485981048,2.46,221.83,221.71,2.2547]
[1734485981250,2.46,221.83,221.7,2.46]
[1734485981449,13.60710273,221.8,221.7,2.46]
[1734485981856,2.2544,221.76,221.7,2.46]
[1734485982156,13.60710273,221.8,221.68,1.5158]
[1734485982362,13.60710273,221.8,221.67,2.46]
[1734485982559,13.60710273,221.8,221.64,2.2554]
[1734485982755,13.60710273,221.8,221.65,2.46]
[1734485983059,13.60710273,221.8,221.65,2.2554]
[1734485983060,2.2548,221.72,221.65,2.2554]
[1734485983457,2.2544,221.76,221.64,7.83966866]
[1734485983657,13.60710273,221.8,221.64,7.83966866]
[1734485984065,13.60710273,221.76,221.64,5.37966866]
[1734485984261,2.46,221.75,221.59,4.396]
[1734485984560,2.2552,221.68,221.61,2.2558]
[1734485984862,2.2552,221.68,221.59,2.9224]
[1734485985055,2.46,221.72,221.59,2.9224]
[1734485985056,2.255,221.69,221.63,2.2556]
[1734485985362,2.46,221.72,221.6,5.50023149]
[1734485985959,2.46,221.72,221.59,2.9224]
[1734485985960,16.06710273,221.72,221.59,5.3824]
[1734485986358,2.2553,221.67,221.57,2.2562]
[1734485986669,21.3961798,221.72,221.54,9.81823591]
[1734485987464,2.2555,221.65,221.54,9.81823591]
[1734485987661,2.2555,221.65,221.55,2.5]
[1734485988065,2.2556,221.64,221.58,2.2561]
[1734485989167,2.2557,221.63,221.57,2.5]
[1734485989369,21.3961798,221.72,221.56,4.7563]
[1734485989565,21.3961798,221.72,221.54,9.81823591]
[1734485989759,13.60710273,221.68,221.55,2.5]
[1734485989958,13.60710273,221.68,221.54,12.07463591]
[1734485989959,2.5,221.67,221.54,5.4663]
[1734485990267,2.5,221.67,221.49,2.5]
[1734485990459,2.5,221.66,221.5,2.5]
[1734485990763,2.5,221.65,221.51,2.5]
[1734485990967,13.60710273,221.68,221.53,2.2566]
[1734485991158,2.5,221.64,221.49,5.38692076]
[1734485991359,2.5,221.64,221.5,2.5]
[1734485991565,2.5,221.64,221.49,5.38692076]
[1734485991758,16.10710273,221.64,221.5,2.5]
[1734485992158,2.2567,221.53,221.29,23.50722012]
[1734485992360,2.5,221.59,221.41,13.60710273]
[1734485992665,2.5,221.59,221.46,5.45315898]
[1734485992865,2.5,221.59,221.48,2.2571]
[1734485993663,2.5,221.59,221.47,2.5]
[1734485994270,2.2564,221.55,221.47,2.5]
[1734485994569,2.5,221.59,221.47,2.5]
[1734485994768,13.60710273,221.64,221.47,2.5]
[1734485994970,2.5,221.63,221.47,2.5]
[1734485996562,2.2563,221.57,221.5,2.2569]
[1734485997069,2.2564,221.56,221.5,2.2569]
[1734485997275,2.5,221.63,221.48,2.2571]
[1734485997566,2.2565,221.55,221.48,2.2571]
[1734485998168,2.5,221.58,221.48,2.2571]
[1734485998460,2.2566,221.54,221.48,2.2571]
[1734485999064,2.2566,221.54,221.49,2.257]
[1734485999264,2.2564,221.56,221.47,2.5]
[1734486000271,2.2564,221.56,221.5,2.2569]
[1734486000467,43.20475374,223.22,221.47,2.5]
[1734486000468,186.34604081,221.82,221.47,2.5]
[1734486000666,13.60710273,221.76,221.54,13.60710273]
[1734486000865,13.60710273,221.76,221.55,7.1093]
[1734486001070,13.60710273,221.68,221.56,2.5]
[1734486001567,2.5,221.67,221.56,2.5]
[1734486002271,13.60710273,221.68,221.56,2.5]
[1734486002576,2.5,221.71,221.58,2.2561]
[1734486003166,2.5,221.71,221.56,4.7562]
[1734486003367,13.60710273,221.68,221.56,2.5]
[1734486004276,13.60710273,221.68,221.53,2.5]
[1734486004478,13.60710273,221.64,221.48,2.9844]
[1734486004679,13.60710273,221.6,221.48,2.9844]
[1734486004873,16.10710273,221.6,221.48,2.9844]
[1734486005069,2.2566,221.54,221.48,2.9844]
[1734486005372,2.5,221.63,221.48,2.9844]
[1734486005573,2.2564,221.56,221.48,2.9844]
[1734486005774,16.10710273,221.64,221.48,2.9844]
[1734486007270,16.10710273,221.64,221.47,2.5]
[1734486007476,2.2567,221.53,221.47,4.7572]
[1734486008380,2.2565,221.55,221.48,2.2571]
[1734486008567,2.5,221.58,221.47,2.5]
[1734486008767,2.5,221.58,221.48,2.5]
[1734486009175,2.2565,221.55,221.49,2.257]
[1734486009367,2.5,221.58,221.49,2.257]
[1734486009566,2.5,221.58,221.48,2.5]
[1734486011176,2.2568,221.52,221.48,2.5]
[1734486011376,2.2568,221.52,221.46,5.3007]
[1734486011574,2.5,221.58,221.37,13.60710273]
[1734486011778,2.5,221.58,221.4,2.2579]
[1734486011779,2.2574,221.46,221.4,2.2579]
[1734486012278,2.2574,221.46,221.41,2.2579]
[1734486013171,2.5,221.51,221.39,2.5]
[1734486013375,2.2577,221.44,221.39,4.7581]
[1734486014284,2.2576,221.44,221.39,4.7581]
[1734486015576,2.2576,221.44,221.39,2.2581]
[1734486016082,2.2577,221.43,221.39,2.2581]
[1734486016283,2.44,221.46,221.37,2.2582]
[1734486016780,2.2579,221.41,221.36,2.2584]
[1734486017682,2.2579,221.41,221.37,2.2583]
[1734486018585,2.44,221.46,221.33,1.5191]
[1734486019189,2.2578,221.43,221.35,2.2584]
[1734486019488,2.44,221.46,221.35,2.2584]
[1734486019677,2.258,221.4,221.35,2.2584]
[1734486019880,2.44,221.46,221.33,1.5191]
[1734486020079,10.99118825,221.46,221.33,1.5191]
[1734486020280,10.99118825,221.46,221.32,5.5006]
[1734486020582,10.99118825,221.46,221.32,3.0606]
[1734486021385,8.55118825,221.34,221.15,8.55118825]
[1734486021680,8.55118825,221.34,221.09,2.44]
[1734486021681,2.44,221.34,221.21,8.55118825]
[1734486021986,2.44,221.34,221.25,2.2594]
[1734486022187,2.2585,221.35,221.26,0.37533]
[1734486022479,2.44,221.35,221.26,0.37533]
[1734486022679,2.2584,221.36,221.26,0.37533]
[1734486022888,5.5383967,221.44,221.27,8.55118825]
[1734486022889,10.99118825,221.41,221.27,8.55118825]
[1734486023075,10.99118825,221.41,221.28,5.5397]
[1734486023485,2.2583,221.37,221.3,2.2589]
[1734486023687,8.55118825,221.41,221.28,14.09088825]
[1734486023884,2.44,221.41,221.28,14.09088825]
[1734486024184,2.2581,221.39,221.32,2.2588]
[1734486025388,2.44,221.42,221.28,5.5397]
[1734486025587,2.2582,221.38,221.28,5.5397]
[1734486026683,2.44,221.43,221.28,5.5397]
[1734486026882,13.68494381,221.42,221.26,0.37533]
[1734486028084,2.2588,221.32,221.26,0.37533]
[1734486029588,2.2583,221.38,221.26,0.37533]
[1734486029785,2.44,221.39,221.26,0.37533]
[1734486029989,13.68494381,221.42,221.28,2.2592]
[1734486030190,2.2585,221.35,221.28,4.6992]
[1734486030689,2.44,221.41,221.28,2.44]
[1734486030893,2.2587,221.33,221.28,2.44]
[1734486031194,2.44,221.35,221.26,0.37533]
[1734486031389,2.2588,221.33,221.26,0.37533]
[1734486031589,2.44,221.35,221.26,0.37533]
[1734486032194,2.259,221.3,221.26,0.37533]
[1734486032493,2.44,221.35,221.26,0.37533]
[1734486033086,13.68494381,221.38,221.26,0.37533]
[1734486033289,2.44,221.37,221.26,0.37533]
[1734486033495,2.2592,221.28,221.26,0.37533]
[1734486036494,2.2593,221.27,221.26,0.37533]
[1734486037398,13.68494381,221.38,221.26,0.37533]
[1734486037399,2.44,221.29,221.26,0.37533]
[1734486037596,5.33178423,221.31,221.26,0.37533]
[1734486037597,7.77178423,221.31,221.26,0.37533]
[1734486037795,2.2593,221.27,221.26,0.37533]
[1734486037993,2.44,221.3,221.26,0.37533]
[1734486038500,2.2592,221.28,221.26,0.37533]
[1734486039699,2.44,221.3,221.26,0.37533]
[1734486039898,2.2593,221.27,221.26,0.37533]
[1734486040394,2.44,221.3,221.26,0.37533]
[1734486041398,2.44,221.35,221.26,0.37533]
[1734486041697,5.53948252,221.38,221.26,2.81533]
[1734486041994,2.44,221.4,221.27,4.6727]
[1734486042501,2.2584,221.36,221.27,4.6727]
[1734486042699,2.44,221.4,221.27,4.6727]
[1734486042900,2.2584,221.36,221.29,2.259]
[1734486043097,2.44,221.4,221.27,4.6727]
[1734486043396,5.41109713,221.41,221.27,4.6727]
[1734486043595,2.44,221.42,221.27,4.6727]
[1734486044300,13.68494381,221.43,221.27,4.6727]
[1734486044495,2.2581,221.39,221.33,2.2586]
[1734486044794,13.68494381,221.47,221.34,2.44]
[1734486044996,13.68494381,221.47,221.33,2.44]
[1734486044997,2.44,221.46,221.33,2.44]
[1734486045196,7.9487312,221.46,221.27,4.6727]
[1734486045400,13.68494381,221.43,221.28,2.44]
[1734486045603,2.2585,221.36,221.3,2.2589]
[1734486046100,2.44,221.4,221.28,2.44]
[1734486046897,2.2589,221.31,221.28,2.44]
[1734486047202,2.44,221.4,221.27,4.6727]
[1734486047401,2.259,221.3,221.27,4.6727]
[1734486047998,2.2592,221.28,221.26,2.87533]
[1734486048204,2.5,221.35,221.26,0.37533]
[1734486049001,2.5,221.38,221.22,2.5]
[1734486049503,2.5,221.38,221.19,3.007]
[1734486049709,13.68494381,221.35,221.19,3.007]
[1734486050397,13.68494381,221.35,221.19,5.2671]
[1734486050798,2.2594,221.27,221.2,2.26]
[1734486051607,2.2594,221.27,221.21,2.2599]
[1734486052507,2.2594,221.26,221.19,5.267]
[1734486053314,13.68494381,221.31,221.19,3.007]
[1734486053804,2.2593,221.28,221.19,3.007]
[1734486054011,13.68494381,221.31,221.19,1.4963]
[1734486055513,13.68494381,221.31,221.17,0.45888]
[1734486055906,2.2599,221.22,221.17,0.45888]
[1734486057417,2.2602,221.18,221.17,0.45888]
[1734486058607,5.38833492,221.32,221.17,9.02787797]
[1734486058806,5.38833492,221.32,221.2,8.56899797]
[1734486059008,5.38833492,221.32,221.22,2.2598]
[1734486059212,2.2593,221.27,221.22,2.2598]
[1734486060012,4.5162,221.39,221.21,2.5]
[1734486060013,8.56899797,221.37,221.21,2.5]
[1734486060214,2.5,221.36,221.21,2.5]
[1734486060512,155.28178517,221.42,221.21,2.5]
[1734486060513,5.53484938,221.39,221.26,8.56899797]
[1734486060710,8.56899797,221.43,221.29,8.56899797]
[1734486060914,8.56899797,221.43,221.3,6.9745]
[1734486061314,2.2584,221.36,221.3,9.2334]
[1734486061520,2.2584,221.36,221.3,6.9745]
[1734486062408,13.68704105,221.48,221.3,6.9745]
[1734486062716,5.33630425,221.46,221.3,6.9745]
[1734486063816,2.2579,221.41,221.35,2.2584]
[1734486064116,5.33630425,221.46,221.36,2.5]
[1734486064318,5.33630425,221.46,221.37,2.5]
[1734486064525,5.33630425,221.46,221.36,2.5]
[1734486064817,5.33630425,221.46,221.37,2.5]
[1734486065415,2.2577,221.43,221.34,2.2585]
[1734486065615,2.2577,221.43,221.35,2.5]
[1734486065816,2.2577,221.43,221.36,2.5]
[1734486066011,2.2577,221.43,221.37,2.5]
[1734486066916,2.2576,221.44,221.37,2.5]
[1734486067111,2.2576,221.44,221.38,2.2582]
[1734486067513,2.2573,221.47,221.37,2.5]
[1734486067918,16.18704105,221.56,221.37,2.5]
[1734486068115,5.37733239,221.53,221.36,13.68704105]
[1734486068312,5.37733239,221.53,221.37,2.5]
[1734486068313,13.68704105,221.52,221.37,2.5]
[1734486068617,13.68704105,221.52,221.38,2.5]
[1734486068618,3.15258269,221.51,221.38,2.5]
[1734486068818,2.5,221.51,221.38,2.5]
[1734486069814,2.2575,221.45,221.38,2.5]
[1734486070011,2.5,221.51,221.38,2.5]
[1734486070818,2.2574,221.46,221.39,2.258]
[1734486071518,2.5,221.51,221.32,13.68704105]
[1734486071721,0.65255387,221.5,221.33,2.5]
[1734486072309,0.65255387,221.5,221.35,2.2584]
[1734486072714,13.68704105,221.48,221.36,2.5]
[1734486072915,13.68704105,221.48,221.3,4.4745]
[1734486073114,0.65284121,221.47,221.32,2.5]
[1734486073322,2.5,221.46,221.32,2.5]
[1734486073722,13.68704105,221.48,221.32,2.5]
[1734486073917,2.5,221.47,221.32,16.18704105]
[1734486074117,2.2577,221.43,221.32,16.18704105]
[1734486074318,2.5,221.49,221.32,16.18704105]
[1734486074716,2.5,221.49,221.36,2.2583]
[1734486075020,2.5,221.49,221.37,2.5]
[1734486075215,2.5,221.49,221.38,2.5]
[1734486075415,2.2575,221.45,221.38,2.5]
[1734486076215,2.5,221.49,221.38,4.7582]
[1734486076216,2.2576,221.44,221.38,4.7582]
[1734486076418,2.5,221.49,221.38,2.5]
[1734486076817,2.2575,221.45,221.39,2.2581]
[1734486077920,2.5,221.49,221.38,2.5]
[1734486078121,2.5,221.49,221.38,4.7582]
[1734486078615,2.5,221.49,221.38,2.5]
[1734486080017,2.5,221.49,221.38,4.7582]
[1734486080617,2.2577,221.44,221.38,4.7582]
[1734486080817,2.5,221.49,221.3,4.4745]
[1734486081020,2.2584,221.36,221.31,2.48]
[1734486081324,2.48,221.43,221.31,2.48]
[1734486082120,8.55474283,221.42,221.31,2.48]
[1734486082717,2.2584,221.37,221.3,6.7334]
[1734486083019,8.55474283,221.36,221.21,8.55474283]
[1734486083321,2.2589,221.31,221.22,2.48]
[1734486083719,2.2589,221.31,221.24,2.2596]
[1734486083922,8.55474283,221.36,221.24,2.2596]
[1734486083923,2.2591,221.3,221.24,2.2596]
[1734486084319,8.55474283,221.36,221.24,2.2596]
[1734486084320,2.48,221.37,221.24,8.55474283]
[1734486084723,2.48,221.42,221.24,5.43284574]
[1734486084917,2.259,221.3,221.24,5.43284574]
[1734486085117,8.55474283,221.35,221.18,7.0456]
[1734486085323,5.49251158,221.43,221.18,7.0456]
[1734486085324,8.55474283,221.32,221.18,4.5656]
[1734486085517,2.48,221.31,221.18,4.5656]
[1734486085919,2.48,221.31,221.18,6.8258]
[1734486086119,2.48,221.31,221.18,4.5656]
[1734486086529,2.48,221.31,221.18,6.8257]
[1734486086530,2.2595,221.25,221.18,6.8257]
[1734486086923,2.48,221.31,221.18,9.86845457]
[1734486087120,8.55474283,221.32,221.19,8.55474283]
[1734486087519,2.48,221.33,221.19,8.55474283]
[1734486087726,2.259,221.3,221.24,2.2596]
[1734486087927,2.259,221.3,221.24,2.48]
[1734486088124,8.55474283,221.35,221.25,2.48]
[1734486088332,2.48,221.37,221.24,2.48]
[1734486088629,2.2587,221.33,221.27,2.2593]
[1734486088830,2.48,221.37,221.25,11.03474283]
[1734486089527,2.2588,221.32,221.26,2.2594]
[1734486090429,2.2589,221.31,221.26,2.2594]
[1734486091331,2.48,221.37,221.25,2.48]
[1734486092133,8.55474283,221.35,221.22,2.66844]
[1734486092327,8.55474283,221.35,221.23,2.48]
[1734486092530,8.55474283,221.32,221.23,2.48]
[1734486092727,2.2595,221.25,221.22,0.40874]
[1734486093325,2.2591,221.29,221.22,0.40874]
[1734486093533,11.03474283,221.32,221.22,0.40874]
[1734486094030,8.55474283,221.35,221.22,0.40874]
[1734486094236,2.48,221.36,221.23,8.55474283]
[1734486094433,2.2589,221.32,221.26,2.2593]
[1734486094633,2.2589,221.32,221.26,4.7393]
[1734486095534,2.48,221.36,221.26,4.7393]
[1734486095726,11.03474283,221.36,221.26,2.48]
[1734486096435,2.2593,221.28,221.26,2.48]
[1734486096935,11.03474283,221.36,221.22,0.40874]
[1734486097137,0.65353407,221.35,221.22,0.40874]
[1734486097436,11.03474283,221.36,221.22,0.40874]
[1734486097638,8.55474283,221.33,221.22,0.40874]
[1734486098232,0.65341635,221.32,221.22,0.40874]
[1734486098438,2.2597,221.23,221.22,0.40874]
[1734486098931,2.2597,221.24,221.22,0.40874]
[1734486099335,11.03474283,221.3,221.22,0.40874]
[1734486099728,2.2597,221.23,221.22,0.40874]
[1734486104439,4.7397,221.23,221.22,0.40874]
[1734486104639,2.2597,221.23,221.22,0.40874]
[1734486106743,8.55474283,221.24,221.12,1.4447]
[1734486106946,8.55474283,221.21,221.12,1.4447]
[1734486107347,2.2602,221.19,221.12,1.4447]
[1734486107547,2.42,221.22,221.12,1.4447]
[1734486108846,2.2602,221.18,221.12,1.4447]
[1734486109255,2.42,221.22,221.12,1.4447]
[1734486110155,2.2603,221.18,221.12,1.4447]
[1734486110352,2.42,221.22,221.12,1.4447]
[1734486111453,2.2606,221.15,221.12,1.4447]
[1734486111854,2.42,221.22,221.12,1.4447]
[1734486112147,2.2607,221.13,221.12,1.4447]
[1734486112552,8.55474283,221.21,221.06,3.9503]